bitfinex/quotes_SOLUSD_20250217
["timestamp","ask_amount","ask_price","bid_price","bid_amount"]
[1739775994547,15.98311511,184.02,183.96,15.98311511]
[1739775994731,3.8027,184.08,183.95,35.98311511]
[1739775995053,15.98311511,184.01,183.96,13.41184853]
[1739775995639,15.98311511,184.02,183.96,17.21684853]
[1739775995845,15.98311511,184.02,183.96,33.19996364]
[1739775996349,15.98311511,184.01,183.96,13.41184853]
[1739775996847,15.98311511,183.99,183.96,13.41184853]
[1739775997032,15.98311511,183.98,183.92,15.98311511]
[1739775997232,15.98311511,183.98,183.92,19.78901511]
[1739775997428,15.98311511,183.97,183.93,13.41184853]
[1739775997851,15.98311511,183.97,183.91,39.78921511]
[1739775998049,15.98311511,183.99,183.92,29.39496364]
[1739775998256,15.98311511,184.0,183.95,13.41184853]
[1739775998453,15.98311511,184.02,183.95,15.98311511]
[1739775998749,15.98311511,184.04,183.98,15.98311511]
[1739775998924,15.98311511,184.05,183.99,13.41184853]
[1739775999127,3.8031,184.06,183.99,13.41184853]
[1739775999128,15.98311511,184.04,183.99,13.41184853]
[1739776000949,15.98311511,184.05,183.99,33.19936364]
[1739776001956,15.21311511,184.05,183.99,33.19936364]
[1739776002326,9.5042,184.13,184.02,20.0]
[1739776002541,9.5042,184.13,184.07,13.41184853]
[1739776002542,15.98311511,184.13,184.07,13.41184853]
[1739776003357,15.98311511,184.14,184.07,29.39496364]
[1739776003737,15.98311511,184.13,184.07,29.39496364]
[1739776004257,15.98311511,184.13,184.07,17.21454853]
[1739776004940,15.98311511,184.13,184.07,13.41184853]
[1739776005142,8.0237,184.17,184.06,15.98311511]
[1739776005143,15.98311511,184.11,184.06,13.41184853]
[1739776005349,15.98311511,184.08,184.03,20.0]
[1739776005535,15.98311511,184.07,184.03,13.41184853]
[1739776005934,15.98311511,184.07,184.0,109.78612455]
[1739776006157,15.98311511,184.06,184.0,109.78612455]
[1739776006358,15.98311511,184.06,184.0,101.28721511]
[1739776006855,15.98311511,184.06,184.01,13.41184853]
[1739776007155,15.98311511,184.08,184.01,29.39496364]
[1739776008242,15.98311511,184.08,184.01,33.19896364]
[1739776008443,9.5305,184.2,184.07,15.98311511]
[1739776008654,15.98311511,184.14,184.09,13.41184853]
[1739776008845,15.98311511,184.13,184.09,13.41184853]
[1739776009379,15.98311511,184.15,184.08,29.39496364]
[1739776010543,15.98311511,184.15,184.09,3.8024]
[1739776011963,15.98311511,184.14,184.09,3.8024]
[1739776012763,3.8007,184.18,184.09,17.21424853]
[1739776012764,15.98311511,184.15,184.09,17.21424853]
[1739776017768,15.98311511,184.14,184.09,17.21424853]
[1739776018339,15.98311511,184.1,184.03,19.78681511]
[1739776018651,15.98311511,184.07,184.03,3.8037]
[1739776018857,3.8016,184.13,184.02,12.30270944]
[1739776019043,15.98311511,184.08,184.03,13.41184853]
[1739776019438,15.98311511,184.07,184.03,13.41184853]
[1739776019633,15.98311511,184.08,184.03,13.41184853]
[1739776020262,15.98311511,184.08,184.02,13.41184853]
[1739776020563,15.98311511,184.08,184.02,17.21574853]
[1739776020739,15.98311511,184.06,184.02,13.41184853]
[1739776020935,15.98311511,184.05,184.0,3.8673]
[1739776021271,15.98311511,184.05,184.02,20.0]
[1739776021483,15.98311511,184.06,184.02,20.0]
[1739776022268,1.0,184.13,184.0,0.063]
[1739776022269,15.98311511,184.04,184.0,0.063]
[1739776022465,15.98311511,184.03,184.0,20.063]
[1739776022765,15.98311511,184.02,184.0,0.063]
[1739776023185,15.98311511,184.03,184.0,0.063]
[1739776023484,15.98311511,184.05,184.0,0.063]
[1739776023843,9.5054,184.11,184.0,0.063]
[1739776023844,15.98311511,184.04,184.0,0.063]
[1739776024239,15.98311511,184.05,184.0,0.063]
[1739776026582,3.8031,184.06,184.0,0.063]
[1739776026583,15.98311511,184.04,184.0,0.063]
[1739776028080,15.98311511,184.03,184.0,0.063]
[1739776028408,15.98311511,184.02,184.0,0.063]
[1739776028689,9.5066,184.09,184.0,0.063]
[1739776028985,15.98311511,184.03,184.0,0.063]
[1739776029160,15.98311511,184.02,184.0,0.063]
[1739776029362,15.98311511,184.01,184.0,0.063]
[1739776030783,15.98311511,184.03,184.0,0.063]
[1739776031163,15.98311511,184.04,184.0,0.063]
[1739776031365,15.98311511,184.03,184.0,0.063]
[1739776031865,15.98311511,184.02,184.0,0.063]
[1739776033682,15.98311511,184.01,184.0,0.063]
[1739776035937,19.78721511,184.01,184.0,0.063]
[1739776036302,15.98311511,184.01,184.0,0.063]
[1739776045722,19.78721511,184.01,184.0,0.063]
[1739776048437,21.96808749,184.01,184.0,0.063]
[1739776048940,19.78721511,184.01,184.0,0.063]
[1739776056757,19.78721511,184.01,183.96,0.063]
[1739776056758,1.0,184.0,183.96,0.063]
[1739776056926,51.17105185,183.97,183.96,0.063]
[1739776058343,10.23421037,183.97,183.96,0.063]
[1739776059147,14.03911037,183.97,183.96,0.063]
[1739776060168,54.97595185,183.97,183.96,0.063]
[1739776061845,14.03911037,183.97,183.96,0.063]
[1739776065346,54.97595185,183.97,183.96,0.063]
[1739776065665,65.48835185,183.97,183.86,6.0168]
[1739776065871,10.23421037,183.87,183.84,1.5145]
[1739776066171,10.23421037,183.85,183.82,6.2595]
[1739776066359,10.23421037,183.84,183.82,6.2595]
[1739776066673,10.23421037,183.83,183.8,0.063]
[1739776066975,10.23421037,183.82,183.8,0.063]
[1739776067841,10.23421037,183.82,183.81,0.063]
[1739776068643,16.01396897,183.82,183.81,0.063]
[1739776072356,16.01396897,183.85,183.81,0.063]
[1739776073075,16.01396897,183.84,183.81,0.063]
[1739776073289,16.01396897,183.85,183.81,0.063]
[1739776073465,16.01396897,183.88,183.82,29.4258175]
[1739776074162,16.01396897,183.89,183.84,13.41184853]
[1739776074370,16.01396897,183.92,183.86,29.4258175]
[1739776074562,16.01396897,183.94,183.88,13.41184853]
[1739776074878,16.01396897,183.93,183.88,13.41184853]
[1739776075096,16.01396897,183.91,183.86,13.41184853]
[1739776075452,16.01396897,183.9,183.86,13.41184853]
[1739776075653,16.01396897,183.89,183.86,13.41184853]
[1739776075888,16.01396897,183.88,183.85,6.5266]
[1739776076077,16.01396897,183.87,183.85,6.5266]
[1739776076454,16.01396897,183.89,183.86,13.41184853]
[1739776076788,16.01396897,183.88,183.85,6.5266]
[1739776077898,16.01396897,183.87,183.85,6.5266]
[1739776081011,16.01396897,183.88,183.85,6.5266]
[1739776083097,16.01396897,183.87,183.85,6.5266]
[1739776085207,16.01396897,183.86,183.81,0.063]
[1739776085385,16.01396897,183.82,183.81,0.063]
[1739776086975,16.01396897,183.84,183.81,0.063]
[1739776087173,16.01396897,183.85,183.81,0.063]
[1739776088797,16.01396897,183.87,183.81,0.063]
[1739776088999,16.01396897,183.88,183.84,0.063]
[1739776089171,16.01396897,183.91,183.84,16.07696897]
[1739776089578,16.01396897,183.91,183.85,13.41184853]
[1739776089805,16.01396897,183.91,183.85,35.6399175]
[1739776090182,16.01396897,183.91,183.85,19.62594853]
[1739776090877,16.01396897,183.9,183.85,19.62594853]
[1739776093012,86.28,183.95,183.85,19.62594853]
[1739776093212,3.8055,183.94,183.85,19.62594853]
[1739776093416,16.01396897,183.92,183.85,39.4473175]
[1739776093616,16.01396897,183.9,183.85,19.62594853]
[1739776093928,16.01396897,183.89,183.85,6.2141]
[1739776094127,16.01396897,183.87,183.84,0.063]
[1739776094830,16.01396897,183.87,183.84,0.063]
[1739776095024,19.82136897,183.85,183.84,0.063]
[1739776098924,19.82136897,183.85,183.81,0.063]
[1739776098925,20.0,183.82,183.81,0.063]
[1739776099125,36.01396897,183.82,183.81,0.063]
[1739776099326,39.82196897,183.82,183.81,0.063]
[1739776101910,1.0,183.81,183.8,0.063]
[1739776102109,20.0,183.78,183.77,0.063]
[1739776102313,52.02793794,183.78,183.77,0.063]
[1739776103642,55.83683794,183.78,183.77,0.063]
[1739776105640,39.82286897,183.78,183.77,0.063]
[1739776106502,55.83683794,183.78,183.77,0.063]
[1739776108729,57.95334744,183.78,183.77,0.063]
[1739776109527,59.60974744,183.78,183.77,0.063]
[1739776109732,16.01396897,183.76,183.71,0.063]
[1739776109941,16.01396897,183.72,183.71,0.063]
[1739776111238,19.82406897,183.72,183.71,0.063]
[1739776113936,20.0,183.69,183.67,0.063]
[1739776114138,16.01396897,183.68,183.67,0.063]
[1739776116055,19.82486897,183.68,183.67,0.063]
[1739776116425,20.82486897,183.68,183.67,0.063]
[1739776116943,21.82486897,183.68,183.67,0.063]
[1739776118044,20.82486897,183.68,183.67,0.063]
[1739776118252,21.82486897,183.68,183.67,0.063]
[1739776120656,35.72032573,183.66,183.65,0.063]
[1739776122342,37.72032573,183.66,183.65,0.063]
[1739776122869,41.53162573,183.66,183.65,0.063]
[1739776126554,35.78930381,183.66,183.65,0.063]
[1739776126755,34.78930381,183.66,183.65,0.063]
[1739776126953,33.78930381,183.66,183.65,0.063]
[1739776135458,34.78930381,183.66,183.65,0.063]
[1739776135773,1.0,183.65,183.64,0.063]
[1739776135972,112.97164705,183.65,183.64,0.063]
[1739776136183,116.78314705,183.65,183.64,0.063]
[1739776136381,115.78314705,183.65,183.64,0.063]
[1739776137884,116.78314705,183.65,183.64,0.063]
[1739776138085,15.08314705,183.65,183.64,0.063]
[1739776138684,14.08314705,183.65,183.64,0.063]
[1739776140386,15.08314705,183.65,183.64,0.063]
[1739776141100,14.08314705,183.65,183.64,0.063]
[1739776142394,15.08314705,183.65,183.64,0.063]
[1739776142789,186.0,183.64,183.62,0.063]
[1739776142973,10.27164705,183.63,183.62,0.063]
[1739776143174,1.0,183.62,183.61,0.063]
[1739776143393,51.35823525,183.62,183.61,0.063]
[1739776143567,10.27164705,183.62,183.61,0.063]
[1739776144396,14.08384705,183.62,183.61,0.063]
[1739776149011,14.08384705,183.62,183.54,5.0743]
[1739776149210,10.27164705,183.6,183.55,13.41184853]
[1739776149402,30.27164705,183.61,183.55,23.68349558]
[1739776150720,10.27164705,183.63,183.56,10.27164705]
[1739776150915,10.30164705,183.65,183.59,13.41184853]
[1739776151111,0.03,183.65,183.59,23.68349558]
[1739776151294,10.30164705,183.65,183.59,13.41184853]
[1739776151805,10.27164705,183.64,183.6,1.5085]
[1739776152004,10.27164705,183.61,183.6,1.5085]
[1739776153105,10.27164705,183.63,183.6,1.5085]
[1739776153322,10.27164705,183.64,183.6,1.5085]
[1739776153532,10.30164705,183.65,183.6,1.5085]
[1739776153730,10.27164705,183.63,183.6,1.5085]
[1739776154025,10.27164705,183.61,183.57,6.3215]
[1739776154234,10.27164705,183.58,183.57,6.3215]
[1739776154602,10.27164705,183.58,183.53,0.063]
[1739776154816,10.27164705,183.55,183.53,0.063]
[1739776155015,10.27164705,183.54,183.53,0.063]
[1739776155415,10.27164705,183.55,183.53,0.063]
[1739776155803,0.03,183.65,183.56,13.41184853]
[1739776156018,0.03,183.65,183.6,16.37294705]
[1739776156415,0.03,183.65,183.6,6.1013]
[1739776156807,10.30164705,183.65,183.6,6.1013]
[1739776157230,0.03,183.65,183.6,6.1013]
[1739776158132,0.03,183.65,183.6,20.18554705]
[1739776158337,0.03,183.65,183.6,9.9139]
[1739776160810,16.06931372,183.65,183.61,1.558]
[1739776161125,0.03,183.65,183.61,5.3703]
[1739776162236,16.03931372,183.62,183.6,6.1013]
[1739776162548,16.03931372,183.61,183.6,6.1013]
[1739776163038,16.03931372,183.61,183.57,1.558]
[1739776163222,16.03931372,183.58,183.57,1.558]
[1739776163735,16.03931372,183.58,183.56,6.1013]
[1739776163941,16.03931372,183.57,183.54,0.03]
[1739776164124,16.03931372,183.55,183.54,0.03]
[1739776165633,19.85291372,183.55,183.54,0.03]
[1739776172157,16.03931372,183.55,183.54,0.03]
[1739776172353,19.85291372,183.55,183.54,0.03]
[1739776177768,185.0,183.54,183.52,0.033]
[1739776177962,20.0,183.5,183.48,0.063]
[1739776178158,39.85421372,183.49,183.48,0.063]
[1739776178844,40.85421372,183.49,183.48,0.063]
[1739776179682,41.85421372,183.49,183.47,0.063]
[1739776179847,16.03931372,183.48,183.47,0.063]
[1739776180272,19.85441372,183.48,183.47,0.063]
[1739776180661,1.0,183.47,183.46,0.063]
[1739776180967,32.07862744,183.43,183.35,1.5564]
[1739776181855,16.03931372,183.43,183.35,1.5564]
[1739776182181,20.0,183.4,183.35,1.5564]
[1739776182354,16.03931372,183.36,183.35,1.5564]
[1739776183775,16.03931372,183.38,183.35,1.5564]
[1739776184000,16.03931372,183.39,183.35,1.5564]
[1739776184872,16.03931372,183.38,183.35,1.5564]
[1739776185382,16.03931372,183.37,183.35,1.5564]
[1739776185978,16.03931372,183.38,183.35,1.5564]
[1739776186601,16.03931372,183.39,183.35,1.5564]
[1739776186998,16.03931372,183.39,183.35,5.3741]
[1739776187899,16.03931372,183.39,183.35,1.5564]
[1739776188797,16.03931372,183.39,183.35,5.3741]
[1739776188997,16.03931372,183.41,183.35,5.3741]
[1739776189300,16.03931372,183.4,183.35,5.3741]
[1739776189500,16.03931372,183.39,183.35,1.5564]
[1739776189805,16.03931372,183.39,183.35,5.3742]
[1739776192197,16.03931372,183.39,183.35,1.5564]
[1739776193791,3.814,183.53,183.4,13.41184853]
[1739776193997,3.814,183.53,183.44,16.03931372]
[1739776193998,16.03931372,183.52,183.44,16.03931372]
[1739776194384,16.03931372,183.51,183.44,16.03931372]
[1739776194774,16.03931372,183.5,183.43,16.03931372]
[1739776195008,16.03931372,183.48,183.41,19.85581372]
[1739776195204,16.03931372,183.49,183.42,16.03931372]
[1739776195412,16.03931372,183.48,183.41,3.8165]
[1739776195705,16.03931372,183.48,183.42,13.41184853]
[1739776195910,16.03931372,183.48,183.41,19.85581372]
[1739776196283,16.03931372,183.48,183.41,16.03931372]
[1739776196606,16.03931372,183.47,183.4,3.8167]
[1739776196914,16.03931372,183.47,183.39,30.155]
[1739776196915,16.03931372,183.45,183.39,30.155]
[1739776197294,102.7,183.52,183.42,16.03931372]
[1739776197295,16.03931372,183.49,183.42,16.03931372]
[1739776197700,16.03931372,183.48,183.42,13.41184853]
[1739776198400,16.03931372,183.48,183.42,17.22814853]
[1739776198891,16.03931372,183.47,183.42,3.8163]
[1739776199723,16.03931372,183.48,183.42,3.8163]
[1739776201409,16.03931372,183.49,183.42,19.85561372]
[1739776201804,16.03931372,183.48,183.42,3.8163]
[1739776201993,16.03931372,183.47,183.42,3.8163]
[1739776202496,16.03931372,183.48,183.42,3.8163]
[1739776202699,16.03931372,183.47,183.41,3.8165]
[1739776203613,16.03931372,183.47,183.41,19.85581372]
[1739776203803,16.03931372,183.49,183.42,29.45116225]
[1739776204008,16.03931372,183.5,183.43,16.03931372]
[1739776204394,16.03931372,183.49,183.43,3.8161]
[1739776204597,16.03931372,183.48,183.43,3.8161]
[1739776204927,16.03931372,183.49,183.43,3.8161]
[1739776205089,0.063,183.54,183.48,29.45116225]
[1739776205291,0.063,183.54,183.49,16.03931372]
[1739776205706,0.063,183.54,183.5,13.41184853]
[1739776206717,0.063,183.54,183.51,19.85381372]
[1739776207213,0.063,183.54,183.51,3.8145]
[1739776209092,0.063,183.54,183.51,19.85381372]
[1739776210806,0.063,183.54,183.51,3.8145]
[1739776211306,0.063,183.54,183.5,3.8146]
[1739776211705,0.063,183.54,183.48,19.85421372]
[1739776211903,16.10231372,183.54,183.48,3.8149]
[1739776212110,16.10231372,183.54,183.49,13.41184853]
[1739776212303,0.063,183.54,183.49,13.41184853]
[1739776212707,0.063,183.54,183.49,17.22664853]
[1739776214029,0.063,183.54,183.49,33.26596225]
[1739776216243,0.063,183.54,183.49,17.22664853]
[1739776216438,16.10231372,183.54,183.49,17.22664853]
[1739776218834,16.03931372,183.52,183.46,19.85481372]
[1739776219314,16.03931372,183.52,183.48,3.8151]
[1739776219517,16.03931372,183.53,183.48,3.8151]
[1739776220112,16.03931372,183.52,183.48,3.8151]
[1739776222144,16.03931372,183.52,183.47,17.22714853]
[1739776222514,16.03931372,183.53,183.47,17.22714853]
[1739776222731,10.27966166,183.53,183.47,17.22714853]
[1739776222940,10.34266166,183.54,183.47,27.50681019]
[1739776223140,0.063,183.54,183.5,10.27966166]
[1739776223642,0.063,183.54,183.49,14.09456166]
[1739776223843,0.063,183.54,183.49,3.8149]
[1739776224639,0.063,183.54,183.5,16.05761839]
[1739776225839,0.063,183.54,183.51,3.8145]
[1739776226337,0.063,183.55,183.54,21.0]
[1739776226640,0.03,183.65,183.59,20.0]
[1739776226845,0.03,183.65,183.61,23.76661839]
[1739776227219,0.03,183.65,183.61,7.709]
[1739776228339,16.05761839,183.64,183.58,3.8128]
[1739776228541,16.05761839,183.62,183.57,1.5155]
[1739776229244,16.05761839,183.62,183.57,5.3287]
[1739776229433,0.03,183.65,183.57,5.3287]
[1739776229434,16.05761839,183.61,183.57,1.5155]
[1739776229940,16.05761839,183.63,183.57,1.5155]
[1739776230243,16.08761839,183.65,183.58,16.05761839]
[1739776230624,0.03,183.65,183.59,29.46946692]
[1739776230945,16.05761839,183.64,183.58,16.05761839]
[1739776231320,16.05761839,183.64,183.58,13.41184853]
[1739776231549,16.05761839,183.61,183.57,1.5155]
[1739776231929,16.05761839,183.62,183.57,1.5155]
[1739776232433,0.03,183.65,183.57,18.74044853]
[1739776232638,16.05761839,183.63,183.57,18.74044853]
[1739776233439,16.05761839,183.63,183.57,3.8131]
[1739776233637,16.05761839,183.61,183.56,6.3536]
[1739776234025,16.05761839,183.62,183.56,10.167]
[1739776234437,16.05761839,183.62,183.56,6.3536]
[1739776234632,16.05761839,183.61,183.54,29.46946692]
[1739776234930,16.05761839,183.6,183.54,13.41184853]
[1739776235442,16.05761839,183.55,183.47,7.8691]
[1739776235647,16.05761839,183.53,183.47,11.6844]
[1739776235951,16.05761839,183.51,183.44,16.05761839]
[1739776236148,16.05761839,183.48,183.43,1.5155]
[1739776236527,16.05761839,183.49,183.43,21.38901839]
[1739776236931,16.05761839,183.48,183.43,5.3314]
[1739776237130,16.05761839,183.48,183.43,1.5155]
[1739776237752,16.05761839,183.49,183.43,5.3316]
[1739776238230,16.05761839,183.5,183.43,21.38921839]
[1739776238432,16.05761839,183.51,183.45,17.22754853]
[1739776238951,16.05761839,183.47,183.42,6.3836]
[1739776239454,16.05761839,183.47,183.42,19.79544853]
[1739776239953,16.05761839,183.47,183.42,23.61174853]
[1739776240756,16.05761839,183.47,183.42,6.3836]
[1739776240965,16.05761839,183.47,183.42,10.1999]
[1739776241148,16.05761839,183.48,183.42,26.25751839]
[1739776242451,16.05761839,183.48,183.42,10.1999]
[1739776243239,16.05761839,183.49,183.43,13.41184853]
[1739776243441,16.05761839,183.48,183.42,10.1999]
[1739776245764,16.05761839,183.46,183.42,0.03]
[1739776246279,16.05761839,183.43,183.42,0.03]
[1739776246559,16.05761839,183.44,183.42,0.03]
[1739776247266,16.05761839,183.45,183.42,0.03]
[1739776247436,16.05761839,183.44,183.42,0.03]
[1739776247959,16.05761839,183.43,183.42,0.03]
[1739776249578,19.87371839,183.43,183.42,0.03]
[1739776250273,35.93133678,183.43,183.42,0.03]
[1739776250570,19.87371839,183.43,183.42,0.03]
[1739776250776,16.05761839,183.43,183.42,0.03]
[1739776251276,16.05761839,183.45,183.42,0.03]
[1739776251472,117.75761839,183.46,183.42,0.03]
[1739776251773,16.05761839,183.43,183.42,0.03]
[1739776252338,16.05761839,183.45,183.42,0.03]
[1739776252556,16.05761839,183.46,183.42,0.03]
[1739776252754,16.05761839,183.47,183.42,0.03]
[1739776253155,16.05761839,183.46,183.42,0.03]
[1739776253351,16.05761839,183.45,183.42,0.03]
[1739776255251,16.05761839,183.44,183.42,0.03]
[1739776256259,16.05761839,183.45,183.42,0.03]
[1739776257572,16.05761839,183.43,183.42,0.03]
[1739776257960,16.05761839,183.44,183.42,0.03]
[1739776259756,16.05761839,183.43,183.42,0.03]
[1739776260365,101.7,183.48,183.42,0.03]
[1739776260366,16.05761839,183.45,183.42,0.03]
[1739776260584,16.05761839,183.46,183.42,0.03]
[1739776261662,16.05761839,183.44,183.42,0.03]
[1739776261861,105.5151,183.48,183.42,0.03]
[1739776262086,16.05761839,183.45,183.42,0.03]
[1739776262469,16.05761839,183.46,183.42,0.03]
[1739776264303,16.05761839,183.48,183.42,13.44184853]
[1739776264472,200.05761839,183.49,183.42,29.49946692]
[1739776264965,16.05761839,183.48,183.42,13.44184853]
[1739776265799,16.05761839,183.48,183.43,3.8161]
[1739776265971,16.05761839,183.5,183.44,13.41184853]
[1739776266381,16.05761839,183.47,183.43,3.8161]
[1739776266593,107.63926555,183.54,183.42,0.03]
[1739776266594,16.05761839,183.46,183.42,0.03]
[1739776267199,16.05761839,183.46,183.42,17.25814853]
[1739776267378,16.05761839,183.45,183.42,0.03]
[1739776267992,16.05761839,183.43,183.42,0.03]
[1739776270090,19.87371839,183.43,183.42,0.03]
[1739776271503,16.05761839,183.43,183.42,0.03]
[1739776274080,36.05761839,183.44,183.42,0.03]
[1739776274287,16.05761839,183.43,183.42,0.03]
[1739776275207,19.87371839,183.43,183.42,0.03]
[1739776279686,35.93133678,183.43,183.42,0.03]
[1739776280401,137.63133678,183.43,183.42,0.03]
[1739776282082,121.57371839,183.43,183.42,0.03]
[1739776285007,137.63133678,183.43,183.42,0.03]
[1739776285412,35.93133678,183.43,183.42,0.03]
[1739776287611,19.87371839,183.43,183.42,0.03]
[1739776288209,16.05761839,183.43,183.42,0.03]
[1739776288601,19.87371839,183.43,183.42,0.03]
[1739776291108,16.05761839,183.43,183.42,0.03]
[1739776293003,19.87371839,183.43,183.42,0.03]
[1739776293418,16.05761839,183.43,183.42,0.03]
[1739776294819,19.87371839,183.43,183.42,0.03]
[1739776295235,16.05761839,183.43,183.42,0.03]
[1739776296629,19.87371839,183.43,183.42,0.03]
[1739776303253,16.05761839,183.43,183.42,0.03]
[1739776303843,19.87371839,183.43,183.42,0.03]
[1739776304834,14.11008394,183.43,183.42,0.03]
[1739776306524,10.29398394,183.37,183.35,0.03]
[1739776306835,10.29398394,183.36,183.35,0.03]
[1739776307325,14.11158394,183.36,183.35,0.03]
[1739776310725,16.09216002,183.43,183.37,13.41184853]
[1739776311638,16.09216002,183.42,183.37,13.41184853]
[1739776312236,16.09216002,183.4,183.37,13.41184853]
[1739776313244,16.09216002,183.42,183.37,17.22924853]
[1739776313428,16.09216002,183.43,183.37,17.22924853]
[1739776315044,16.09216002,183.47,183.4,29.50400855]
[1739776315727,3.8147,183.5,183.42,13.41184853]
[1739776315728,36.09216002,183.48,183.42,13.41184853]
[1739776315927,0.063,183.43,183.42,13.41184853]
[1739776317351,0.063,183.43,183.42,39.79440855]
[1739776318448,0.063,183.43,183.42,41.41170855]
[1739776319543,16.09216002,183.54,183.43,14.41184853]
[1739776319745,16.09216002,183.54,183.48,13.41184853]
[1739776320253,16.09216002,183.53,183.47,13.41184853]
[1739776320552,16.09216002,183.52,183.47,13.41184853]
[1739776321135,16.09216002,183.48,183.42,6.4741]
[1739776321342,16.09216002,183.43,183.42,6.4741]
[1739776321645,137.79216002,183.51,183.42,6.4741]
[1739776321646,16.09216002,183.45,183.42,6.4741]
[1739776322431,16.09216002,183.46,183.42,6.4741]
[1739776323848,16.09216002,183.45,183.42,6.4741]
[1739776324839,16.09216002,183.46,183.42,6.4741]
[1739776325036,16.09216002,183.45,183.37,8.0077]
[1739776325242,16.09216002,183.42,183.37,8.0077]
[1739776325844,16.09216002,183.42,183.38,13.41184853]
[1739776326043,16.09216002,183.41,183.38,13.41184853]
[1739776326363,14.3522,183.49,183.38,13.41184853]
[1739776326364,16.09216002,183.4,183.38,13.41184853]
[1739776326556,16.09216002,183.39,183.38,13.41184853]
[1739776326857,16.09216002,183.39,183.37,6.3904]
[1739776327054,16.09216002,183.39,183.36,0.03]
[1739776327645,16.09216002,183.4,183.36,0.03]
[1739776328030,16.09216002,183.39,183.37,0.03]
[1739776328868,16.09216002,183.4,183.37,0.03]
[1739776329158,16.09216002,183.38,183.37,0.03]
[1739776330845,16.09216002,183.38,183.35,0.03]
[1739776330846,101.7,183.37,183.35,0.03]
[1739776331051,121.60976002,183.36,183.35,0.03]
[1739776331840,137.70192004,183.36,183.35,0.03]
[1739776332039,121.60976002,183.36,183.35,0.03]
[1739776332253,20.0,183.33,183.26,8.56245174]
[1739776332465,16.09216002,183.28,183.26,8.56245174]
[1739776333172,16.09216002,183.27,183.25,13.41184853]
[1739776333581,16.09216002,183.28,183.25,13.41184853]
[1739776333745,16.09216002,183.29,183.25,13.41184853]
[1739776334145,16.09216002,183.28,183.24,1.6173]
[1739776334344,16.09216002,183.27,183.24,1.6173]
[1739776334541,16.09216002,183.25,183.23,0.03]
[1739776335164,16.09216002,183.26,183.23,0.03]
[1739776335378,16.09216002,183.27,183.23,0.03]
[1739776336449,16.09216002,183.28,183.23,0.03]
[1739776336653,16.09216002,183.29,183.23,0.03]
[1739776336880,16.09216002,183.28,183.23,0.03]
[1739776337280,16.09216002,183.27,183.23,0.03]
[1739776338284,16.09216002,183.28,183.23,0.03]
[1739776339268,16.09216002,183.28,183.23,0.03]
[1739776339662,36.09216002,183.33,183.23,0.03]
[1739776339663,16.09216002,183.24,183.23,0.03]
[1739776342064,16.09216002,183.27,183.23,0.03]
[1739776342489,3.8188,183.31,183.24,13.41184853]
[1739776342490,16.09216002,183.29,183.24,13.41184853]
[1739776342658,16.09216002,183.31,183.24,31.11450855]
[1739776342995,16.09216002,183.31,183.26,13.41184853]
[1739776343203,16.09216002,183.33,183.26,16.09216002]
[1739776343485,16.09216002,183.33,183.28,13.41184853]
[1739776343662,16.09216002,183.33,183.28,17.23094853]
[1739776344873,86.54,183.34,183.28,17.23094853]
[1739776345180,0.063,183.35,183.3,13.41184853]
[1739776345768,0.063,183.35,183.31,17.23044853]
[1739776346565,16.15516002,183.35,183.31,17.23044853]
[1739776347189,0.063,183.35,183.31,17.23044853]
[1739776348292,0.063,183.35,183.3,13.41184853]
[1739776349563,0.063,183.35,183.31,3.8186]
[1739776349779,0.063,183.35,183.31,17.23044853]
[1739776350871,0.063,183.35,183.31,3.8186]
[1739776351577,16.15516002,183.35,183.3,3.8188]
[1739776351992,16.09216002,183.34,183.29,17.23084853]
[1739776352198,16.09216002,183.33,183.27,3.8195]
[1739776352499,16.09216002,183.33,183.28,13.41184853]
[1739776353799,16.09216002,183.33,183.27,17.23134853]
[1739776354099,16.09216002,183.34,183.27,33.32350855]
[1739776354266,16.09216002,183.34,183.29,13.41184853]
[1739776354471,0.063,183.35,183.29,29.50400855]
[1739776354973,0.063,183.35,183.31,13.41184853]